bitfinex-derivatives/quotes_ETHF0:USTF0_20250323
["timestamp","ask_amount","ask_price","bid_price","bid_amount"]
[1742746929774,1.3083,2005.0,2004.9,1.3181]
[1742746930172,2.30598,2005.0,2004.9,1.3181]
[1742746931678,1.3083,2005.0,2004.6,5.958]
[1742746931885,0.99783,2004.7,2004.6,7.3143]
[1742746932083,4.20283,2004.7,2004.6,7.3143]
[1742746932285,4.20283,2004.7,2004.6,1.3563]
[1742746932497,0.99791,2004.6,2004.3,5.577]
[1742746932698,2.34581,2004.6,2004.4,1.361]
[1742746933195,1.3479,2004.5,2004.4,1.361]
[1742746934289,1.3479,2004.5,2004.4,2.35898]
[1742746934484,3.205,2004.7,2004.4,1.361]
[1742746934793,4.5529,2004.7,2004.5,1.361]
[1742746934994,5.55074,2004.7,2004.5,1.361]
[1742746935291,1.3479,2004.6,2004.5,1.361]
[1742746935494,2.34578,2004.6,2004.5,1.361]
[1742746935890,1.3479,2004.6,2004.5,1.361]
[1742746936992,1.3479,2004.6,2004.5,2.35893]
[1742746937188,1.3479,2004.6,2004.5,1.361]
[1742746938193,2.34578,2004.6,2004.5,1.361]
[1742746938392,1.3479,2004.6,2004.5,1.361]
[1742746939097,2.34578,2004.6,2004.5,1.361]
[1742746942194,2.34578,2004.6,2004.3,4.579]
[1742746942399,4.5169,2004.5,2004.4,1.3829]
[1742746942596,5.51486,2004.5,2004.3,3.2078]
[1742746942800,2.97228,2004.4,2004.3,1.3829]
[1742746942994,3.64648,2004.4,2004.1,6.95609]
[1742746943300,0.99813,2004.1,2004.0,4.5584]
[1742746943490,0.99813,2004.1,2003.9,0.0074731]
[1742746943688,0.6594,2004.0,2003.9,0.0074731]
[1742746943885,1.65758,2004.0,2003.9,0.0074731]
[1742746944600,1.65758,2004.0,2003.6,3.2078]
[1742746944601,0.99831,2003.8,2003.6,3.2078]
[1742746944790,3.203,2003.7,2003.6,3.2078]
[1742746944993,4.5969,2003.7,2003.6,3.2078]
[1742746945500,0.99838,2003.6,2003.5,1.3784]
[1742746945701,2.39228,2003.6,2003.5,1.3784]
[1742746946005,1.3939,2003.6,2003.5,1.3784]
[1742746946796,2.39228,2003.6,2003.5,1.3784]
[1742746947305,1.3939,2003.6,2003.5,1.3784]
[1742746948497,3.203,2003.7,2003.5,1.3784]
[1742746948692,1.3475,2003.8,2003.6,0.99838]
[1742746948890,1.3475,2003.8,2003.7,1.3438]
[1742746949104,4.5525,2003.8,2003.7,1.3438]
[1742746949398,1.3475,2003.8,2003.7,2.34213]
[1742746949597,3.2078,2003.9,2003.8,0.99828]
[1742746949804,4.5525,2004.1,2003.9,0.99823]
[1742746949998,4.5525,2004.1,2004.0,1.3438]
[1742746950195,5.55063,2004.1,2004.0,1.3438]
[1742746950609,4.5525,2004.1,2004.0,1.3438]
[1742746951402,5.55063,2004.1,2004.0,1.3438]
[1742746951800,5.2418,2004.1,2004.0,1.3438]
[1742746952305,4.5525,2004.1,2004.0,1.3438]
[1742746953098,3.205,2004.1,2004.0,1.3438]
[1742746954298,4.5794,2004.1,2004.0,1.3438]
[1742746954807,5.57753,2004.1,2004.0,1.3438]
[1742746955315,0.9982,2004.0,2003.7,5.958]
[1742746955605,4.21023,2003.9,2003.7,5.958]
[1742746955812,1.3744,2003.8,2003.6,2.046]
[1742746956197,1.3744,2003.8,2003.5,4.20619]
[1742746956395,3.213,2003.7,2003.6,1.3919]
[1742746956708,3.213,2003.7,2003.6,2.39028]
[1742746957510,3.214,2003.9,2003.7,0.99833]
[1742746957710,3.214,2003.9,2003.7,2.36293]
[1742746958098,4.6034,2003.9,2003.8,1.3646]
[1742746958811,3.214,2003.9,2003.8,1.3646]
[1742746959011,5.60163,2003.9,2003.8,1.3646]
[1742746959201,4.6034,2003.9,2003.8,1.3646]
[1742746959400,1.3894,2003.9,2003.8,1.3646]
[1742746959611,4.6024,2003.9,2003.8,1.3646]
[1742746959800,4.6024,2003.9,2003.8,2.36288]
[1742746959998,3.213,2003.9,2003.8,2.36288]
[1742746960206,5.2257,2004.1,2003.8,1.3646]
[1742746960505,4.5344,2004.1,2003.9,2.98048]
[1742746960706,4.5344,2004.1,2004.0,1.3423]
[1742746961711,5.53253,2004.1,2004.0,1.3423]
[1742746962405,8.74033,2004.1,2004.0,1.3423]
[1742746963016,8.74033,2004.1,2003.7,5.958]
[1742746963017,0.99825,2003.9,2003.7,5.958]
[1742746963220,0.6721,2003.8,2003.7,5.958]
[1742746963512,2.0768,2003.8,2003.7,5.958]
[1742746963820,3.07508,2003.8,2003.7,5.958]
[1742746964309,2.0768,2003.8,2003.7,5.958]
[1742746964915,3.07508,2003.8,2003.7,5.958]
[1742746965315,2.0768,2003.8,2003.7,5.958]
[1742746965517,1.4047,2003.8,2003.7,6.95633]
[1742746965718,3.2078,2004.1,2003.7,6.95633]
[1742746965719,3.215,2003.9,2003.8,0.99826]
[1742746965920,3.215,2003.9,2003.8,3.11596]
[1742746966615,1.2889,2004.1,2003.9,0.99821]
[1742746966819,1.2889,2004.1,2004.0,1.4095]
[1742746967019,4.5049,2004.1,2004.0,1.4095]
[1742746969621,3.216,2004.1,2004.0,2.40768]
[1742746970013,1.3894731,2004.2,2004.0,1.4095]
[1742746970212,3.2204731,2004.2,2004.1,2.35653]
[1742746971121,4.6024731,2004.2,2004.1,2.35653]
[1742746972226,1.3894731,2004.2,2004.1,2.35653]
[1742746975026,1.3894731,2004.2,2004.1,1.3584]
[1742746975426,1.3894731,2004.2,2004.1,2.0055]
[1742746979122,2.0839731,2004.2,2004.1,2.0055]
[1742746979520,3.0820531,2004.2,2003.9,0.6918]
[1742746979716,4.5677,2004.1,2003.9,2.1018]
[1742746980028,3.208,2004.1,2004.0,1.41]
[1742746980229,4.20613,2004.1,2004.0,1.41]
[1742746983429,7.41393,2004.1,2004.0,1.41]
[1742746983824,0.99828,2003.8,2003.7,5.958]
[1742746984127,4.20228,2003.8,2003.7,5.958]
[1742746985225,4.20228,2003.8,2003.6,1.2929]
[1742746986025,0.99833,2003.7,2003.6,1.2929]
[1742746987718,7.41012,2003.8,2003.6,1.2929]
[1742746987925,7.41009,2003.8,2003.6,1.2929]
[1742746989633,0.99833,2003.7,2003.6,1.2929]
[1742746992238,7.4101,2003.8,2003.6,1.2929]
[1742746992638,1.3574,2003.7,2003.6,1.2929]
[1742746994934,2.35573,2003.7,2003.6,1.2929]
[1742746995942,1.3574,2003.7,2003.6,1.2929]
[1742746996442,2.35573,2003.7,2003.6,1.2929]
[1742746997341,1.3574,2003.7,2003.6,1.2929]
[1742746998040,2.35573,2003.7,2003.6,1.2929]
[1742746998632,1.3574,2003.7,2003.6,1.2929]
[1742747000042,2.35573,2003.7,2003.6,1.2929]
[1742747000440,1.3574,2003.7,2003.6,1.2929]
[1742747002144,2.35573,2003.7,2003.6,1.2929]
[1742747008443,3.2078,2003.8,2003.6,1.2929]
[1742747008654,3.203,2003.7,2003.6,1.2929]
[1742747009647,4.20133,2003.7,2003.6,1.2929]
[1742747009849,6.24693,2003.7,2003.6,1.2929]
[1742747012044,0.99841,2003.6,2003.3,9.1658]
[1742747012246,2.28351,2003.6,2003.4,1.3013]
[1742747012649,1.2851,2003.5,2003.4,1.3013]
[1742747014853,5.48653,2003.5,2003.4,1.3013]
[1742747015353,4.4881,2003.5,2003.4,1.3013]
[1742747016046,4.4881,2003.5,2003.3,10.16432]
[1742747016240,4.4881,2003.5,2003.4,1.3962]
[1742747017553,5.48653,2003.5,2003.4,1.3962]
[1742747018250,4.4881,2003.5,2003.4,1.3962]
[1742747018853,4.4881,2003.5,2003.4,2.39468]
[1742747019452,4.4881,2003.5,2003.4,1.3962]
[1742747020153,5.48653,2003.5,2003.4,1.3962]
[1742747020946,5.48653,2003.5,2003.3,3.2078]
[1742747021145,4.20143,2003.5,2003.4,1.3127]
[1742747023558,3.203,2003.5,2003.2,0.99857]
[1742747023758,3.203,2003.4,2003.3,1.294]
[1742747024655,0.99846,2003.5,2003.3,2.29252]
[1742747024860,3.203,2003.4,2003.3,2.29252]
[1742747025062,3.203,2003.4,2003.3,0.99852]
[1742747026457,3.203,2003.4,2003.2,0.6937]
[1742747026651,3.203,2003.4,2003.3,0.99853]
[1742747027958,3.203,2003.4,2003.3,1.65103]
[1742747031855,4.20135,2003.7,2003.3,3.8603]
[1742747032050,3.203,2003.7,2003.3,3.8603]
[1742747032250,4.20612,2003.8,2003.3,3.8603]
[1742747032457,3.203,2003.7,2003.6,0.99837]
[1742747032661,3.2078,2003.8,2003.7,0.99833]
[1742747032860,6.4108,2003.8,2003.7,0.99833]
[1742747033055,3.2078,2003.8,2003.7,0.99833]
[1742747033259,5.862,2004.0,2003.9,0.99823]
[1742747033558,6.4182731,2004.2,2003.9,0.99819]
[1742747033764,1.4113,2004.1,2004.0,0.99818]
[1742747034064,6.4182731,2004.2,2004.0,0.99818]
[1742747034258,6.4182731,2004.2,2003.8,1.3549]
[1742747034465,6.4182731,2004.2,2004.0,0.99815]
[1742747034666,7.8295731,2004.2,2004.0,0.99815]
[1742747034856,7.8295731,2004.2,2003.9,0.99819]
[1742747034857,1.4113,2004.1,2003.9,0.99819]
[1742747035061,1.4113,2004.1,2003.8,0.6535]
[1742747035364,1.4113,2004.1,2003.9,0.99818]
[1742747035560,0.99818,2004.0,2003.7,0.9983]
[1742747035861,2.36477,2003.9,2003.6,10.16416]
[1742747036058,4.5695,2003.8,2003.6,10.16416]
[1742747036258,1.3665,2003.7,2003.6,10.16416]
[1742747036459,1.3665,2003.7,2003.6,9.1658]
[1742747037058,1.3665,2003.7,2003.6,10.16418]
[1742747037861,1.3665,2003.7,2003.6,3.2078]
[1742747038058,1.3665,2003.7,2003.6,4.20618]
[1742747038268,1.3665,2003.7,2003.6,0.99838]
[1742747038960,1.3665,2003.7,2003.5,6.6572]
[1742747039153,2.0094,2003.7,2003.5,6.6572]
[1742747039355,3.203,2003.6,2003.5,6.6572]
[1742747039561,4.4979,2003.6,2003.5,6.6572]
[1742747040162,4.4979,2003.6,2003.5,5.958]
[1742747043672,4.4979,2003.6,2003.5,7.2501]
[1742747043867,4.4979,2003.6,2003.5,1.2921]
[1742747045672,5.49628,2003.6,2003.5,1.2921]
[1742747046071,4.4979,2003.6,2003.5,1.2921]
[1742747049067,5.49628,2003.6,2003.5,1.2921]
[1742747050472,4.4979,2003.6,2003.5,1.2921]
[1742747050667,5.49628,2003.6,2003.5,1.2921]
[1742747051676,4.4979,2003.6,2003.5,1.2921]
[1742747052068,5.49628,2003.6,2003.5,1.2921]
[1742747059886,4.4979,2003.6,2003.5,1.2921]
[1742747063288,5.49628,2003.6,2003.5,1.2921]
[1742747065482,8.70408,2003.6,2003.5,1.2921]
[1742747067490,0.99848,2003.4,2003.3,7.2827]
[1742747067689,4.20148,2003.4,2003.2,0.6642]
[1742747067888,1.3175,2003.3,2003.2,0.6642]
[1742747068784,2.31603,2003.3,2003.2,0.6642]
[1742747069582,4.20152,2003.4,2003.2,1.66278]
[1742747070389,0.99853,2003.3,2003.2,1.66278]
[1742747071090,3.203,2003.4,2003.2,1.66278]
[1742747071391,4.20152,2003.4,2003.2,1.66278]
[1742747072087,0.99853,2003.3,2003.2,1.66278]
[1742747072982,4.20152,2003.4,2003.2,1.66278]
[1742747073487,4.20152,2003.4,2003.3,0.99853]
[1742747073686,4.20152,2003.4,2003.2,1.66274]
[1742747074486,4.20152,2003.4,2003.3,0.99853]
[1742747074684,4.5629,2003.6,2003.4,0.99846]
[1742747074889,2.35354,2003.5,2003.3,0.99849]
[1742747075084,2.35354,2003.5,2003.2,0.6642]
[1742747075792,6.4108,2003.6,2003.4,0.99848]
[1742747075986,1.3619,2003.5,2003.4,0.99848]
[1742747076191,6.4108,2003.6,2003.5,0.99843]
[1742747076391,7.40918,2003.6,2003.4,0.99844]
[1742747077493,7.40919,2003.6,2003.4,0.99845]
[1742747077684,1.3619,2003.5,2003.4,0.99845]
[1742747080294,6.4108,2003.6,2003.3,5.958]
[1742747080495,7.8025,2003.6,2003.5,0.99843]
[1742747081193,3.2078,2003.6,2003.4,0.99843]
[1742747081390,3.2078,2003.6,2003.5,0.99843]
[1742747081592,4.5104,2003.6,2003.5,0.99843]
[1742747082197,1.3026,2003.6,2003.5,0.99843]
[1742747082498,3.8809,2003.8,2003.5,0.99839]
[1742747082699,3.8809,2003.8,2003.5,2.39719]
[1742747082700,1.3026,2003.7,2003.5,2.39719]
[1742747082893,1.3026,2003.7,2003.6,1.3988]
[1742747083295,2.30093,2003.7,2003.6,1.3988]
[1742747083797,1.3026,2003.7,2003.6,1.3988]
[1742747085002,2.30093,2003.7,2003.6,1.3988]
[1742747088203,1.3026,2003.7,2003.6,1.3988]
[1742747088904,2.30093,2003.7,2003.6,1.3988]
[1742747090006,4.87921,2003.8,2003.6,1.3988]
[1742747090202,6.23041,2003.8,2003.6,1.3988]
[1742747090498,3.2078,2003.9,2003.6,1.3988]
[1742747090699,0.6635,2004.1,2003.7,5.70354]
[1742747090894,2.037,2004.1,2003.9,0.99819]
[1742747091099,2.037,2004.1,2004.0,1.413]
[1742747092397,2.037,2004.1,2004.0,2.41118]
[1742747092705,2.037,2004.1,2004.0,1.413]
[1742747094808,2.037,2004.1,2004.0,2.41118]
[1742747095308,2.037,2004.1,2004.0,1.413]
[1742747095507,2.037,2004.1,2004.0,2.41118]
[1742747096499,1.3735,2004.1,2004.0,2.41118]
[1742747096699,6.4172731,2004.2,2004.1,0.99813]
[1742747096898,7.8259731,2004.2,2004.1,2.36443]
[1742747097099,7.8259731,2004.2,2004.1,1.3663]
[1742747097308,3.2152731,2004.2,2004.1,2.36443]
[1742747097508,0.0074731,2004.2,2004.1,2.36443]
[1742747097705,0.0074731,2004.2,2004.1,3.01083]
[1742747097897,50.001,2004.5,2004.1,2.0127]
[1742747097898,1.4087,2004.5,2004.1,2.0127]
[1742747098099,1.4087,2004.5,2004.4,0.99798]
[1742747098608,1.4087,2004.5,2004.3,0.99799]
[1742747098804,1.4087,2004.5,2004.3,2.36429]
[1742747099304,1.4087,2004.5,2004.4,1.3663]
[1742747099711,1.4087,2004.5,2004.4,2.36428]
[1742747100406,1.4087,2004.5,2004.4,1.3663]
[1742747100909,1.4087,2004.5,2004.4,2.36428]
[1742747101508,3.8590731,2004.6,2004.5,0.99793]
[1742747101809,5.2638731,2004.6,2004.5,1.969]
[1742747102004,5.2638731,2004.6,2004.5,2.6766]
[1742747103609,5.2638731,2004.6,2004.5,3.67453]
[1742747103913,5.2638731,2004.6,2004.5,2.6766]
[1742747105008,5.2638731,2004.6,2004.2,5.9654731]
[1742747105213,5.2909,2004.5,2004.2,8.3160331]
[1742747105510,4.5789,2004.4,2004.3,1.3525]
[1742747106412,5.57688,2004.4,2004.3,1.3525]
[1742747106603,4.5789,2004.4,2004.3,1.3525]
[1742747107004,4.5789,2004.4,2004.3,2.99953]
[1742747107405,4.5789,2004.4,2004.3,3.66493]
[1742747108213,1.3779,2004.4,2004.3,3.66493]
[1742747109615,1.3779,2004.4,2004.3,2.6669]
[1742747109616,2.37588,2004.4,2004.3,2.6669]
[1742747109817,1.3779,2004.4,2004.3,2.6669]
[1742747110208,1.3779,2004.4,2004.3,1.3525]
[1742747111115,1.3779,2004.4,2004.3,2.35053]
[1742747111319,1.3779,2004.4,2004.3,1.3525]
[1742747112317,2.37588,2004.4,2004.3,1.3525]
[1742747112710,0.99803,2004.3,2004.2,0.0074731]
[1742747112908,2.27413,2004.3,2004.2,0.0074731]
[1742747113110,2.27413,2004.3,2004.2,1.2884731]
[1742747113318,1.2761,2004.3,2004.2,1.2884731]
[1742747114220,2.27413,2004.3,2004.2,0.0074731]
[1742747116613,1.2761,2004.3,2004.2,0.0074731]
[1742747117013,2.27413,2004.3,2004.2,0.0074731]
[1742747117621,1.2761,2004.3,2004.2,0.0074731]
[1742747118715,3.201,2004.4,2004.3,0.99803]
[1742747119016,3.201,2004.4,2004.3,2.37333]
[1742747121017,4.5415,2004.5,2004.4,0.99798]
[1742747121218,3.2078,2004.5,2004.4,2.39308]
[1742747121706,5.1378731,2004.6,2004.5,0.99793]
[1742747121912,5.1378731,2004.6,2004.5,2.39303]
[1742747123423,1.9368731,2004.6,2004.5,1.3951]
[1742747124424,2.9347531,2004.6,2004.5,1.3951]
[1742747124719,1.9368731,2004.6,2004.5,1.3951]
[1742747125422,2.9347531,2004.6,2004.5,1.3951]
[1742747125616,1.9368731,2004.6,2004.5,1.3951]
[1742747128223,2.9347531,2004.6,2004.5,1.3951]
[1742747128628,1.9368731,2004.6,2004.5,1.3951]
[1742747129225,2.9347531,2004.6,2004.5,1.3951]
[1742747130819,2.9347531,2004.6,2004.5,2.39303]
[1742747130820,0.0074731,2004.6,2004.5,2.39303]
[1742747131026,0.6419,2005.0,2004.5,9.5977]
[1742747131232,49.3518,2005.1,2004.9,0.99773]
[1742747131233,3.8938,2005.1,2004.9,0.99773]
[1742747131426,5.2118,2005.1,2005.0,2.0612]
[1742747132017,5.2118,2005.1,2005.0,3.05888]
[1742747132226,2.004,2005.1,2005.0,3.05888]
[1742747132429,2.004,2005.1,2005.0,2.0612]
[1742747132631,3.00163,2005.1,2005.0,1.4123]
[1742747132929,2.004,2005.1,2004.8,2.41006]
[1742747133122,4.5253,2005.0,2004.8,2.41006]
[1742747133318,3.201,2005.0,2004.9,1.37]
[1742747134022,0.686,2005.1,2004.9,1.37]
[1742747134225,3.886,2005.1,2005.0,0.99768]
[1742747134528,3.886,2005.1,2005.0,1.70478]
[1742747136129,3.8419,2005.2,2005.1,0.99763]
[1742747136327,3.8419,2005.2,2005.1,2.31963]
[1742747137327,3.8419,2005.2,2005.1,1.322]
[1742747138029,3.8419,2005.2,2005.1,2.31963]
[1742747139924,0.0074731,2005.3,2005.1,1.322]
[1742747140124,0.0074731,2005.3,2005.2,2.37048]
[1742747141339,3.2078,2005.5,2005.4,0.99748]
[1742747141837,3.8775,2005.6,2005.5,0.99743]
[1742747142336,3.8775,2005.6,2005.4,1.3729]
[1742747142337,3.2078,2005.9,2005.4,3.86656]
[1742747142529,0.0074731,2005.8,2005.7,0.99733]
[1742747143431,0.0074731,2005.8,2005.7,3.07333]
[1742747144729,3.2078,2006.3,2005.7,3.07333]
[1742747144730,0.997,2006.4,2006.1,0.9971]
[1742747144935,1.6556,2006.4,2006.2,1.3762]
[1742747145132,0.6586,2006.4,2006.2,1.3762]
[1742747145732,4.86339,2006.4,2006.2,1.3762]
[1742747146249,8.0624,2006.4,2006.2,1.3762]
[1742747146539,8.06239,2006.4,2006.2,1.3762]
[1742747147337,8.06238,2006.4,2006.2,1.3762]
[1742747148035,7.0654,2006.4,2006.2,1.3762]
[1742747148239,7.0654,2006.4,2006.2,2.37328]
[1742747148433,7.0654,2006.4,2006.2,1.3762]
[1742747148635,8.06238,2006.4,2006.3,1.3408]
[1742747148940,7.0654,2006.4,2006.3,1.3408]
[1742747149640,3.8664,2006.4,2006.3,2.33783]
[1742747149840,3.8664,2006.4,2006.3,1.3408]
[1742747150639,4.86338,2006.4,2006.3,1.3408]
[1742747151044,3.8664,2006.4,2006.3,1.3408]
[1742747151444,4.86338,2006.4,2006.3,1.3408]
[1742747151738,4.86338,2006.4,2006.0,10.82805]
[1742747151944,4.86338,2006.4,2006.1,1.2908]
[1742747152147,0.99704,2006.3,2006.1,1.2908]
[1742747152342,3.8664,2006.4,2006.1,1.2908]
[1742747152343,4.86343,2006.4,2006.1,1.2908]
[1742747152645,4.86343,2006.4,2006.0,5.958]
[1742747152646,3.199,2006.3,2006.0,5.958]
[1742747152848,5.53997,2006.3,2006.1,1.2908]
[1742747153037,1.3439,2006.2,2006.1,1.2908]
[1742747153343,2.34098,2006.2,2006.1,1.2908]
[1742747153949,1.3439,2006.2,2006.1,1.2908]
[1742747154447,2.34098,2006.2,2006.1,1.2908]
[1742747154637,3.04508,2006.2,2006.0,5.958]
[1742747154838,1.2882,2006.1,2006.0,5.958]
[1742747155441,1.2882,2006.1,2005.9,8.2527]
[1742747155641,1.2882,2006.1,2006.0,1.2975]
[1742747155940,0.99718,2006.0,2005.9,5.958]
[1742747156133,1.67438,2006.0,2005.9,5.958]
[1742747156339,2.96258,2006.0,2005.9,5.958]
[1742747158644,0.99728,2005.8,2005.7,1.2975]
[1742747158854,4.19528,2005.8,2005.7,1.2975]
[1742747159237,4.87418,2005.8,2005.7,1.2975]
[1742747160239,3.8769,2005.8,2005.7,1.2975]
[1742747160633,3.2078,2006.4,2005.7,12.9545]
[1742747160837,0.0074731,2006.5,2006.4,0.99698]
[1742747161038,0.0074731,2006.5,2006.2,3.74255]
[1742747161252,1.0044131,2006.5,2006.3,42.196]
[1742747161550,1.0044031,2006.5,2006.4,1.396]
[1742747163045,3.2074731,2006.5,2006.4,1.396]
[1742747163245,4.2044031,2006.5,2006.4,1.396]
[1742747163437,3.2074731,2006.5,2006.4,1.396]
[1742747163633,3.2074731,2006.5,2006.4,2.39298]
[1742747164750,3.2074731,2006.5,2006.4,1.396]
[1742747165543,3.2074731,2006.5,2006.4,2.39298]
[1742747165743,4.2044031,2006.5,2006.4,1.396]
[1742747168356,3.2074731,2006.5,2006.4,1.396]
[1742747168548,4.2044031,2006.5,2006.4,1.396]
[1742747169249,3.2074731,2006.5,2006.4,1.396]
[1742747170652,4.2044031,2006.5,2006.4,1.396]
[1742747170852,3.2074731,2006.5,2006.4,1.396]
[1742747171053,4.2044031,2006.5,2006.4,1.396]
[1742747173055,3.2074731,2006.5,2006.4,1.396]
[1742747173452,4.5732731,2006.5,2006.4,1.396]
[1742747173754,5.5702031,2006.5,2006.4,1.396]
[1742747176156,4.5732731,2006.5,2006.4,1.396]
[1742747177252,3.2074731,2006.5,2006.4,2.39298]
[1742747178055,0.0074731,2006.5,2006.4,2.39298]
[1742747183858,0.0074731,2006.5,2006.4,5.60078]
[1742747187557,0.0074731,2006.5,2006.4,11.55878]
[1742747190262,1.0044031,2006.5,2006.4,10.5618]
[1742747190563,1.0044031,2006.5,2006.4,7.354]
[1742747190766,1.0044031,2006.5,2006.4,8.35098]
[1742747190962,2.3044031,2006.5,2006.4,7.354]
[1742747191560,1.3074731,2006.5,2006.4,8.35098]
[1742747192165,0.0074731,2006.5,2006.4,8.35098]
[1742747192865,0.0074731,2006.5,2006.4,11.55878]
[1742747193666,1.3,2006.8,2006.7,0.99684]
[1742747194460,1.3,2006.8,2006.7,2.40494]
[1742747196270,0.6687,2006.9,2006.8,0.99679]
[1742747196469,2.0654,2006.9,2006.8,2.40489]
[1742747196865,3.06214,2006.9,2006.8,1.4081]
[1742747197772,2.0654,2006.9,2006.8,1.4081]
[1742747198071,3.06214,2006.9,2006.8,1.4081]
[1742747198271,2.0654,2006.9,2006.8,1.4081]
[1742747198969,3.06214,2006.9,2006.8,1.4081]
[1742747199162,2.0654,2006.9,2006.8,1.4081]
[1742747199363,3.06215,2006.9,2006.7,6.9548]
[1742747199576,0.6687,2006.9,2006.8,1.3402]
[1742747201264,1.66544,2006.9,2006.8,1.3402]
[1742747201470,0.99679,2006.8,2006.7,5.958]
[1742747203460,1.66547,2006.9,2006.7,5.958]
[1742747203973,1.66547,2006.9,2006.7,7.3021]
[1742747204372,0.99679,2006.8,2006.7,7.3021]
[1742747204571,1.66548,2006.9,2006.7,7.3021]
[1742747204967,0.99679,2006.8,2006.7,7.3021]
[1742747205174,0.99679,2006.8,2006.7,1.3441]
[1742747205377,1.66547,2006.9,2006.7,1.3441]
[1742747205973,0.99679,2006.8,2006.7,1.3441]
[1742747207876,1.66548,2006.9,2006.7,1.3441]
[1742747208078,0.6687,2006.9,2006.7,2.34093]
[1742747208277,1.66545,2006.9,2006.7,2.34093]
[1742747208482,1.66545,2006.9,2006.8,1.3569]
[1742747209581,0.6687,2006.9,2006.5,7.6001731]
[1742747209779,0.99682,2006.8,2006.6,1.4059]
[1742747210177,0.6595,2006.7,2006.6,1.4059]
[1742747210783,0.6595,2006.7,2006.6,2.40279]
[1742747211079,0.0074731,2007.0,2006.8,0.99675]
[1742747211380,1.0041631,2007.0,2006.9,0.6543]
[1742747211581,1.0041631,2007.0,2006.8,2.40268]
[1742747211785,1.0041631,2007.0,2006.9,1.4059]
[1742747212786,2.3520631,2007.0,2006.9,1.4059]
[1742747213182,1.3553731,2007.0,2006.9,2.40264]
[1742747213482,1.3553731,2007.0,2006.9,1.4059]
[1742747213682,2.3520631,2007.0,2006.9,1.4059]
[1742747214283,1.3553731,2007.0,2006.9,1.4059]
[1742747214683,2.3520631,2007.0,2006.9,1.4059]
[1742747218883,5.5480631,2007.0,2006.9,1.4059]
[1742747224695,3.2034731,2007.0,2006.9,1.4059]
[1742747225997,4.2001631,2007.0,2006.9,1.4059]
[1742747226193,5.5907631,2007.0,2006.9,1.4059]
[1742747227690,1.3980731,2007.0,2006.9,1.4059]
[1742747227999,2.3947631,2007.0,2006.9,1.4059]
[1742747228791,1.3980731,2007.0,2006.9,1.4059]
[1742747233106,2.3947631,2007.0,2006.9,1.4059]
[1742747233901,1.3980731,2007.0,2006.9,1.4059]
[1742747235108,2.3947631,2007.0,2006.9,1.4059]
[1742747235510,1.3980731,2007.0,2006.9,1.4059]
[1742747237412,2.3947631,2007.0,2006.9,1.4059]
[1742747242112,1.3980731,2007.0,2006.9,1.4059]
[1742747242307,2.3947631,2007.0,2006.9,1.4059]
[1742747242708,3.0509631,2007.0,2006.9,1.4059]
[1742747245107,2.0542731,2007.0,2006.9,1.4059]
[1742747245306,1.3980731,2007.0,2006.9,1.4059]
[1742747247518,2.3947631,2007.0,2006.9,1.4059]
[1742747248714,1.3980731,2007.0,2006.9,1.4059]
[1742747252518,2.3947631,2007.0,2006.9,1.4059]
[1742747252914,1.3980731,2007.0,2006.9,1.4059]
[1742747253515,2.3947631,2007.0,2006.9,1.4059]
[1742747261116,1.3980731,2007.0,2006.9,1.4059]
[1742747261612,2.3947631,2007.0,2006.9,1.4059]
[1742747268933,1.3980731,2007.0,2006.9,1.4059]
[1742747270042,2.3947631,2007.0,2006.9,1.4059]
[1742747286845,1.3980731,2007.0,2006.9,1.4059]
[1742747287254,2.3947631,2007.0,2006.9,1.4059]
[1742747288952,0.99674,2006.9,2006.7,5.52139]
[1742747289253,3.02494,2006.9,2006.8,1.3844]
[1742747289450,2.0282,2006.9,2006.8,1.3844]
[1742747290361,3.02494,2006.9,2006.8,1.3844]
[1742747290652,8.431,2006.9,2006.5,5.9654731]
[1742747290956,0.99689,2006.6,2006.5,1.3918731]
[1742747291143,4.19189,2006.6,2006.5,1.3918731]
[1742747291748,4.85669,2006.6,2006.5,1.3918731]
[1742747293762,8.06449,2006.6,2006.5,0.0074731]
[1742747296245,8.14276526,2006.6,2006.5,0.0074731]
[1742747297348,8.06449,2006.6,2006.5,0.0074731]
[1742747297544,8.14277402,2006.6,2006.5,0.0074731]
[1742747298860,8.14277627,2006.6,2006.5,0.0074731]
[1742747299759,8.14277627,2006.6,2006.4,1.3149]
[1742747299760,0.99704,2006.3,2006.1,0.6686]
[1742747300063,4.19204,2006.3,2006.1,0.6686]
[1742747301057,4.19204,2006.3,2006.2,1.4018]
[1742747302158,6.15414,2006.3,2006.2,1.4018]
[1742747306965,5.51544,2006.3,2006.2,1.4018]
[1742747308065,5.51544,2006.3,2006.2,2.0976]
[1742747312170,5.51544,2006.3,2006.2,1.4018]
[1742747312473,6.19174,2006.3,2006.2,1.4018]
[1742747315370,5.1947,2006.3,2006.0,7.3177731]
[1742747315569,0.99713,2006.1,2006.0,7.3177731]
[1742747315760,3.195,2006.1,2006.0,8.3149531]
[1742747315961,4.19213,2006.1,2006.0,7.3177731]
[1742747316163,3.195,2006.1,2006.0,8.3149531]
[1742747316367,3.195,2006.1,2006.0,7.3177731]
[1742747316566,4.19213,2006.1,2006.0,0.0074731]
[1742747316873,3.195,2006.1,2006.0,2.3578531]
[1742747317174,3.195,2006.1,2006.0,3.7437531]
[1742747318474,4.19213,2006.1,2006.0,2.7465731]